{"text_format":"1","workbook":"xlsx","n_sheets":5,"sheets":["pokyny","Žádost","dotazník STK strana 1","dotazník STK strana 2 a 3","Evidenční list"],"not_rendered":{"charts":0,"images":0,"macros":1,"external_links":0,"defined_names":4,"comments":0,"pivot_tables":0},"unopened":[],"bounds":{"document_bytes":16777216,"sheet_cells":100000,"rows_first":2000,"rows_last":500,"rows_between":2000,"halvings":0,"cell_chars":16384,"cell_head_chars":4096},"cells_cut":0,"cells_raw":0,"read":"whole","date_system":"1900"}

{"sheet":"pokyny","index":0,"n_rows":11,"n_cols":2,"rows_kept":11,"cut":false,"hidden":false,"merged":[[11,0,11,1],[0,0,0,1]]}
["Pokyny pro vyplnění žádosti o SÚD"]
[1,"Formulář po Vás žádá povolení MAKRA, jedná se o malou aplikaci pro odeslání formuláře tlačítkem na konci této stránky, makro můžete bez obav povolit."]
[2,"V žádosti se vyplňují jen buňky které nejsou barevně zvýrazněny, barevně zvýrazněné buňky se doplní automaticky. U číselných informací piště jen prosté číslo bez mezer a zkratky jednotek "]
[3,"Pokud se vyplněný údaj na dalších stranách opakuje vyplní se automaticky"]
[4,"V odstavci 4 - stručný obsah projektu uvádějte jen údaje z oblasti tělesné a střelecké přípravy příslušníků Policie České republiky a jejich dalších sportovních aktivit včetně rekreačně pohybových aktivit zaměstnanců Ministerstva vnitra, Policie České republiky. Údaje o ostatní sportovní činnosti klubu, například sportovní činnost mládeže neuvádějte."]
[5,"Všechny účetní hodnoty jsou v korunách na maximálně dvě desetinná místa"]
[6,"Identifikační číslo klubu u UNITOP ČR naleznete zde:                                                                                                                                                               http://www.policie-sport.cz/wp-content/uploads/2013/01/adres%C3%A1%C5%99-SKP-2016-10.10.16.pdf"]
[7,"Spisovou značku si zkontrolujte na: http://portal.justice.cz/ Zde také naleznete platné údaje o statutárních zástupcích a způsob jednání za klub."]
[8,"Současně zkontrolujte, zda ve sbírce listim máte uveřejněny platné stanovy a účetní uzáverku.                                                                                                                                                                                                     Povinnost zveřejňovat účetní závěrku mají všechny spolky, protože nově mají tuto povinnost všechny osoby, které jsou zapsány v jakémkoliv z veřejných rejstříků. Podrobnosti stanoví ust. § 21a zák. o účetnictví. Důležitá je zejména lhůta, ve které je potřeba účetní závěrku zveřejnit: zákon stanoví, že účetní závěrka má být zveřejněna do 30 dní od jejího schválení příslušným orgánem (popř. i auditorem, pokud to zákon vyžaduje). U spolků účetní závěrku schvaluje nejvyšší orgán spolku (zpravidla členská schůze, ale stanovy mohou určit i jinak). Nejpozději musí být účetní závěrka zveřejněna do 12 měsíců od rozvahového dne dané účetní závěrky, a to i když nebyla řádně schválena či ověřena (v takovém případě je nutno tuto skutečnost uvést). Přechodná ustanovení stanovila spolkům povinnost doplnit do veřejného rejstříku i účetní závěrky za účetní období, která započala v r. 2014 (lhůta do 31. 3. 2016) a v r. 2015 (lhůta do 30. 11. 2017). Pokud by spolek výše uvedené povinnosti nesplnil, rejstříkový soud ho k tomu může vyzvat a pokud by spolek výzvu neuposlechl, může mu být uložena pořádková pokuta."]
[9,"Složení členské základy uvádějte k 31.12.2017. V případě veteránů je vzhledem k podmínkám Státní účelové dotace je nutné ověřit, zda je veden spolkem VETERÁN POLICIE ČESKÉ REPUBLIKY z.s. "]
[10,"Zkontrolujte zda jsou vyplněné všechny údaje v EVIDENČNÍM LISTĚ v případě že ne doplňte v předcházejících listech na tomto listě údaje nepřepisujte."]

{"sheet":"Žádost","index":1,"n_rows":72,"n_cols":6,"rows_kept":72,"cut":false,"hidden":false,"merged":[[8,1,8,5],[9,1,9,5],[2,1,2,4],[3,1,3,4],[4,1,4,5],[5,1,5,5],[6,1,6,5],[7,1,7,5],[10,1,10,4],[14,1,14,4],[15,1,15,4],[16,1,16,4],[17,1,17,4],[12,1,12,4],[18,1,18,4],[11,1,11,4],[13,1,13,4],[19,1,19,4],[48,2,48,4],[31,1,31,4],[26,1,26,4],[20,1,20,4],[24,1,24,4],[23,1,23,4],[25,1,25,4],[22,1,22,5],[30,1,30,4],[49,2,51,2],[49,3,49,4],[50,3,50,4],[32,1,32,4],[51,3,51,4],[41,1,41,5],[46,1,46,5],[45,1,45,4],[47,1,47,5],[48,1,51,1],[34,1,34,5],[0,4,0,5],[43,1,43,5],[33,1,33,5],[42,1,42,5],[44,1,44,4],[35,1,35,5],[39,1,39,5],[40,4,40,5],[38,1,38,5],[36,1,37,5],[28,1,28,5],[1,1,1,5],[0,2,0,3],[27,1,27,4],[21,1,21,5],[29,1,29,5],[52,1,52,4],[62,1,62,4],[63,1,63,4],[64,1,64,4],[53,1,55,1],[53,2,53,4],[54,2,54,4],[55,2,55,4],[58,1,58,5],[70,3,70,4],[56,1,56,4],[57,1,57,4],[59,1,59,5],[60,1,60,4],[61,1,61,4],[68,1,68,5],[65,1,65,4],[66,1,66,4],[67,1,67,4]]}
[null,"Termín zaslání do: ","2018-01-19",null,"   Zašlete na adresu:      UNITOP ČR, Papírenská 199/6, 160 00 Praha 6"]
[null,"Žádost o podíl na státní dotaci v roce 2018"]
[null,"SKP/PSK úplný název"]
[null,"Identifikační číslo u UNITOP ČR"]
[null,"Poskytovatel dotace:   Ministerstvo vnitra České Republiky"]
[null,"Název programu:"]
[null,"        Veřejně prospěšný program pro rok 2018 v oblasti tělesné a střelecké přípravy příslušníků Policie České republiky a jejich dalších sportovních aktivit včetně rekreačně pohybových aktivit zaměstnanců Ministerstva vnitra, Policie České republiky a Veteránů Policie ČR."]
[null,"Název projektu:"]
[null,"       Vytváření podmínek pro tělesnou a střeleckou přípravu policistů a další sportovní a rekreačně-pohybové aktivity policistů, zaměstnanců a veteránů Policie ČR."]
[null,"1) Identifikační údaje o předkládajícím klubu"]
[null,"Adresa sídla klubu (místo, ulice, číslo, PSČ):"]
[null,"Registrováno u Krajského soudu v:"]
[null,"Spisová značka, zapsáno dne"]
[null,"Název a adresa peněžního ústavu:"]
[null,"Číslo účtu:"]
[null,"IČO:"]
[null,"DIČ:"]
[null,"E-mail adresa:"]
[null,"Prezentace na Internetu – www.stránky"]
[null,"Telefon:"]
[null,"Doručovací adresa pokud není shodná se sídlem SKP/PSK:"]
[]
[null,"2)  Statutární zástupce klubu (oprávněn jednat jménem klubu)"]
[null,"Titul, jméno, příjmení:"]
[null,"Funkce v klubu:"]
[null,"Kontaktní adresa:"]
[null,"Telefon nebo mobil:"]
[null,"E-mail adresa:"]
[]
[null,"3) Garant realizace projektu"]
[null,"Titul, jméno, příjmení:"]
[null,"Kontaktní adresa:"]
[null,"Telefon:"]
[]
[null," 4) Základní informace a stručný obsah  projektu realizovaného v působnosti klubu:"]
[null,"    (v případě většího rozsahu vložte samostatný list - přílohu)"]
[]
[]
[]
[null,"5)     Účetní informace klubu:"]
[null,"Účetnictví:","ANO","NE","  klub vede podvojné účetnictví"]
[]
[null,"6)    Účetní hodnota nemovitého majetku SKP/PSK k 31. 12. 2017 v Kč"]
[null,"Hodnota majetku musí být uvedena v účetní hodnotě, ne odhad!"]
[null,"Hodnota vlastního nemovitého majetku v Kč."]
[null,"Hodnota nemovitého majetku v dlouhodobém nájmu nebo výpůjčce v Kč (10 let a vyšší), pokud klub hradí provozní náklady (energie, údržba a pod.)       "]
[]
[null,"7)    Základní údaje o celkových neinvestičních nákladech na projekt v roce 2018 v Kč"]
[null,"Náklady na projekt","Celkové náklady",null,null,{"$f":"SUM(F50:F52)","v":0}]
[null,null,"Neinvestiční (rozdělení)","Materiální náklady  (materiální sportovní vybavení, neinvestiční údržba)"]
[null,null,null,"Nemateriální náklady (služby, nájemné, cestovné, startovné, ubytování,energie, atd)  "]
[null,null,null,"Osobní náklady (odměna rozhodčích, ostatní osobní náklady, DPP atd.)  "]
[null,"Celková výše požadované neinvestiční dotace (max. 70 % celkových nákladů)",null,null,null,{"$f":"SUM(F54:F56)","v":0}]
[null,"Členění požadované dotace","Materiální náklady  (materiální sportovní vybavení, neinvestiční údržba)"]
[null,null,"Nemateriální náklady (služby, nájemné, cestovné, startovné, ubytování na spor. akci,energie, atd)  "]
[null,null,"Osobní náklady (odměna rozhodčích, ostatní osobní náklady, DPP atd.)  "]
[null,"Plánovaný vlastní podíl klubu na financování neinvestičních nákladů na projekt v roce 2018  v Kč",null,null,null,{"$f":"F49-F53","v":0}]
[null,"Plánovaný vlastní podíl klubu na financování projektu v roce 2018  v %  (nejméně 30%)                    ",null,null,null,{"$f":"F57/(F50+F51+F52)","v":{"$error":"#DIV/0!"}}]
[]
[null,"8/  Údaje o celkových příjmech a výdajích klubu v roce 2017 v tisících Kč                                            (z účetnictví: hlavní - sportovní činnost klubu)"]
[null,"Příjmy od odběratelů služeb (sportovní služby, startovné a pod.)"]
[null,"Dotace okresních, krajských, regionálních, obecních a městských úřadů"]
[null,"Dary od nadací, podnikatelské sféry apod."]
[null,"Příjmy členských příspěvků"]
[null,"Dotace od MV ČR"]
[null,"Dotace od MŠMT ČR"]
[null,"Dotace ostatní"]
[null,"Celkové příjmy v hlavní - sportovní činnost klubu za rok 2017",null,null,null,{"$f":"SUM(F61:F67)","v":0}]
[]
[null,"Dne:"]
[null,null,null,"razítko"]
[null,null,null,null,null,"podpis statutárního zástupce SKP/PSK"]

{"sheet":"dotazník STK strana 1","index":2,"n_rows":37,"n_cols":6,"rows_kept":37,"cut":false,"hidden":false,"merged":[[0,2,0,3],[0,4,0,5],[1,1,1,5],[3,1,3,4],[4,1,4,4],[2,1,2,5],[15,1,15,4],[16,1,16,4],[17,1,17,4],[18,1,18,5],[20,1,20,5],[5,1,5,5],[9,1,9,4],[35,1,35,4],[27,1,27,5],[14,1,14,4],[6,1,6,5],[7,1,7,4],[10,1,10,4],[8,1,8,4],[11,1,11,4],[12,1,12,4],[13,1,13,4],[21,1,21,4],[19,1,19,5],[28,1,28,4],[22,1,22,4],[29,1,29,4],[34,1,34,4],[37,1,37,5],[23,1,23,4],[24,1,24,4],[25,1,25,4],[26,1,26,5],[31,1,31,4],[30,1,30,4],[32,1,32,5],[33,1,33,4],[36,1,36,4]]}
[null,"Termín zaslání do: ",{"$f":"Žádost!$C$1","v":"2018-01-19"},null,"   Zašlete na adresu:      UNITOP ČR, Papírenská 6b, 160 00 Praha 6"]
[null,"Informační dotazník pro STK UNITOP ČR 2018"]
[null,"strana 1"]
[null,"SKP/PSK úplný název",null,null,null,{"$f":"Žádost!$F$3","v":0}]
[null,"Identifikační číslo u UNITOP ČR",null,null,null,{"$f":"Žádost!$F$4","v":0}]
[]
[null,"A) Základní identifikační údaje o předkládajícím klubu"]
[null,"Adresa sídla klubu (místo, ulice, číslo, PSČ):",null,null,null,{"$f":"Žádost!F11","v":0}]
[null,"Registrováno u Krajského soudu v:",null,null,null,{"$f":"Žádost!$F$12","v":0}]
[null,"Spisová značka, zapsáno dne",null,null,null,{"$f":"Žádost!$F$13","v":0}]
[null,"Název a adresa peněžního ústavu:",null,null,null,{"$f":"Žádost!F14","v":0}]
[null,"Číslo účtu:",null,null,null,{"$f":"Žádost!F15","v":0}]
[null,"IČO:",null,null,null,{"$f":"Žádost!F16","v":0}]
[null,"DIČ:",null,null,null,{"$f":"Žádost!F17","v":0}]
[null,"E-mail adresa:",null,null,null,{"$f":"Žádost!F18","v":0}]
[null,"Prezentace na Internetu – www.stránky",null,null,null,{"$f":"Žádost!F19","v":0}]
[null,"Telefon:",null,null,null,{"$f":"Žádost!F20","v":0}]
[null,"Doručovací adresa pokud není shodná se sídlem SKP/PSK",null,null,null,{"$f":"Žádost!F21","v":0}]
[]
[null,"B) Údaje o funkcionářích klubu"]
[null,"Statutární zástupce klubu (oprávněn jednat jménem klubu)"]
[null,"Titul, jméno, příjmení:",null,null,null,{"$f":"Žádost!F24","v":0}]
[null,"Funkce v klubu:",null,null,null,{"$f":"Žádost!$F$25","v":0}]
[null,"Kontaktní adresa:",null,null,null,{"$f":"Žádost!F26","v":0}]
[null,"Telefon nebo mobil:",null,null,null,{"$f":"Žádost!F27","v":0}]
[null,"E-mail adresa:",null,null,null,{"$f":"Žádost!F28","v":0}]
[]
[null,"Ekonom (hospodář)"]
[null,"Titul, jméno, příjmení:"]
[null,"Kontaktní adresa:"]
[null,"Telefon nebo mobil:"]
[null,"E-mail adresa:"]
[null,"Předseda kontrolní komise"]
[null,"Titul, jméno, příjmení:"]
[null,"Kontaktní adresa:"]
[null,"Telefon nebo mobil:"]
[null,"E-mail adresa:"]

{"sheet":"dotazník STK strana 2 a 3","index":3,"n_rows":64,"n_cols":9,"rows_kept":64,"cut":false,"hidden":false,"merged":[[59,4,59,5],[53,4,53,5],[54,4,54,5],[55,4,55,5],[56,4,56,5],[57,4,57,5],[41,4,41,5],[36,4,36,5],[35,1,35,8],[50,4,50,5],[58,4,58,5],[13,1,13,8],[14,1,14,7],[16,1,16,7],[17,1,17,7],[47,4,47,5],[22,1,22,8],[20,1,20,2],[19,1,19,8],[18,1,18,8],[20,5,20,6],[20,7,20,8],[42,4,42,5],[37,4,37,5],[38,4,38,5],[39,4,39,5],[40,4,40,5],[63,6,63,8],[62,6,62,8],[24,7,24,8],[33,1,33,8],[34,1,34,8],[51,4,51,5],[48,4,48,5],[49,4,49,5],[27,1,27,4],[29,1,29,4],[24,1,25,4],[52,4,52,5],[43,4,43,5],[44,4,44,5],[45,4,45,5],[46,4,46,5],[0,1,0,8],[1,1,1,8],[2,1,2,8],[6,1,6,7],[8,1,8,7],[3,1,3,7],[4,1,4,7],[5,1,5,7],[7,1,7,7],[9,1,9,7],[20,3,20,4],[21,5,21,6],[28,1,28,4],[31,1,31,4],[21,1,21,2],[21,3,21,4],[30,1,30,4],[24,5,24,6],[11,1,11,7],[15,1,15,7],[26,1,26,4],[23,1,23,8],[10,1,10,7],[12,1,12,8],[21,7,21,8]]}
[null,"Informační dotazník pro STK UNITOP ČR 2018"]
[null,"strana 2"]
[null,"C) Členská základna klubu k 31.12.2017"]
[null,"Složení členské základy",null,null,null,null,null,null,"Počet"]
[null,"Celkový počet členů registrovaných v klubu"]
[null,"Počet příslušníků  PČR  (dále jen „policista“)"]
[null,"Počet zaměstnanců  PČR a  MV (dále jen „zaměstnanec“)"]
[null,"Počet veteránů - jen členové VETERÁN POLICIE ČESKÉ REPUBLIKY z.s. IČO 22693904 (Dle parametrů podmínek dotace MV) (dále jen „veterán“)"]
[null,"Celkový počet policistů, veteránů a zaměstnanců",null,null,null,null,null,null,{"$f":"SUM(I6:I8)","v":0}]
[null,"Počet dospělých",null,null,null,null,null,null,{"$f":"I5-I11","v":0}]
[null,"Počet dětí a mládeže do 18 let"]
[null,"Členové SKP pojištěnci Zdravotní pojišťovny MV"]
[]
[null,"D)    Roční členské příspěvky v Kč"]
[null,"Mládež ( do 18 let věku) - průměrná hodnota všech příspěvků vybraných od jednoho dítěte za kalendářní rok.  "]
[null,"Policisté, veteráni, zaměstnanci MV - průměrná hodnota všech příspěvků vybraných od jedné osoby za kalendářní rok.  "]
[null,"Ostatní dospělí členové SKP/PSK - průměrná hodnota všech příspěvků vybraných od jedné osoby za kalendářní rok.  "]
[null,"Celková hodnota členských příspěvků za všechny členy"]
[]
[null,"E) Členství klubu v jiných zastřešujících sdruženích. Mimo jednotlivých sportovních svazů, příklad: ČUS - Česká unie sportu, Sokol, ČASPV, ČAATS, SSSČR, apod. (vypsat)."]
[]
[]
[]
[null,"F)  Akce uspořádané a závazně plánované předkládajícím klubem "]
[null,"Druh akce",null,null,null,2017,null,2018]
[null,null,null,null,null,"Počet akcí","Počet účastníků","Plánované akce","Předpokládaný počet účastníků"]
[null,"Policejní mistrovství ČR ( PM ČR )"]
[null,"Postupové ( krajské ) kolo na  PM ČR"]
[null,"Mistrovství UNITOP ČR  ( MU ČR )"]
[null,"Postupové ( krajské ) kolo na MU ČR"]
[null,"Velká cena UNITOP ČR"]
[null,"Další sport. akce pořádané klubem pro policisty a zam. v regionu  "]
[]
[null,"Informační dotazník pro STK UNITOP ČR 2018"]
[null,"strana 3"]
[null,"G) Informace o sportovních oddílech SKP/PSK"]
[null,"Sportovní odvětví","Členství v příslušném  sportovním svazu (ano/ne)","Počet členů","Nejvyšší úroveň dosažené soutěže řízené sportovním svazem",null,"Předseda","Telefon/Mobil","E-mail"]
[]
[]
[]
[]
[]
[]
[]
[]
[]
[]
[]
[]
[]
[]
[]
[]
[]
[]
[]
[]
[]
[]
[]
[]
[null,"Dne:"]
[null,null,null,null,"razítko"]
[null,null,null,null,null,null,"podpis statutárního zástupce SKP/PSK"]

{"sheet":"Evidenční list","index":4,"n_rows":2,"n_cols":16,"rows_kept":2,"cut":false,"hidden":false,"merged":[]}
["pořadové číslo klubu","název klubu","IČO","Vlastní nemovitý majetek"," Nemovitý majetek v dlouhodobém nájmu","Celková hodnota členských příspěvků dle účetnictví klubu za všechny členy","Celkové náklady na projekt","Celková výše požadované neinvestiční dotace ","Celkové příjmy v hlavní - sportovní činnost klubu rok 2017","Celkový počet členů registrovaných v klubu","Celkový počet osob s pracovně právním vztahem k PČR nebo MV","WWW","E-mail adresa:","Adresa","Statutární zástupce","Telefon"]
[{"$f":"Žádost!$F$4","v":0},{"$f":"Žádost!$F$3","v":0},{"$f":"Žádost!$F$16","v":0},{"$f":"Žádost!$F$45","v":0},{"$f":"Žádost!$F$46","v":0},{"$f":"'dotazník STK strana 2 a 3'!$I$18","v":0},{"$f":"Žádost!$F$49","v":0},{"$f":"Žádost!$F$53","v":0},{"$f":"Žádost!$F$68","v":0},{"$f":"'dotazník STK strana 2 a 3'!$I$5","v":0},{"$f":"'dotazník STK strana 2 a 3'!$I$9","v":0},{"$f":"Žádost!$F$19","v":0},{"$f":"Žádost!$F$18","v":0},{"$f":"Žádost!$F$11","v":0},{"$f":"Žádost!$F$24","v":0},{"$f":"Žádost!$F$27","v":0}]